[Event "Titled Tuesday Blitz July 11 Late 2023"]
[White "cedchass2006"]
[Black "Broca Jimenez, Fernando"]
[BlackFideId "5104742"]
[WhiteElo "2344"]
[BlackElo "2223"]
[Result "1/2-1/2"]
[Round "9"]
[TimeControl "180+2"]
[Date "2023.07.11"]
[WhiteClock "0:00:40"]
[BlackClock "0:00:06"]
[Board "111"]

1. e4 {[%clk 0:03:00]}  c5 {[%clk 0:02:59]} 2. Nf3 {[%clk 0:03:00]}  g6 {[%clk 0:02:59]} 3. d4 {[%clk 0:02:59]}  cxd4 {[%clk 0:03:00]} 4. Qxd4 {[%clk 0:02:59]}  Nf6 {[%clk 0:02:59]} 5. Nc3 {[%clk 0:02:59]}  Nc6 {[%clk 0:03:00]} 6. Qa4 {[%clk 0:02:58]}  d6 {[%clk 0:02:46]} 7. e5 {[%clk 0:02:58]}  dxe5 {[%clk 0:02:46]} 8. Nxe5 {[%clk 0:02:58]}  Bd7 {[%clk 0:02:46]} 9. Nxd7 {[%clk 0:02:57]}  Qxd7 {[%clk 0:02:47]} 10. Be3 {[%clk 0:02:52]}  Bg7 {[%clk 0:02:46]} 11. Rd1 {[%clk 0:02:51]}  Qc8 {[%clk 0:02:30]} 12. Be2 {[%clk 0:02:43]}  O-O {[%clk 0:02:29]} 13. O-O {[%clk 0:02:43]}  Rd8 {[%clk 0:02:26]} 14. Rxd8+ {[%clk 0:02:41]}  Qxd8 {[%clk 0:02:27]} 15. Rd1 {[%clk 0:02:41]}  Qc7 {[%clk 0:02:18]} 16. Qf4 {[%clk 0:02:19]}  e5 {[%clk 0:01:50]} 17. Qc4 {[%clk 0:02:17]}  Rd8 {[%clk 0:01:46]} 18. Nd5 {[%clk 0:02:12]}  Nxd5 {[%clk 0:01:37]} 19. Rxd5 {[%clk 0:02:13]}  a6 {[%clk 0:01:33]} 20. Bf3 {[%clk 0:02:04]}  Rd7 {[%clk 0:01:10]} 21. Bb6 {[%clk 0:01:55]}  Qc8 {[%clk 0:01:06]} 22. Bg4 {[%clk 0:01:52]}  Rxd5 {[%clk 0:00:52]} 23. Bxc8 {[%clk 0:01:43]}  Rd1+ {[%clk 0:00:50]} 24. Qf1 {[%clk 0:01:43]}  Rxf1+ {[%clk 0:00:48]} 25. Kxf1 {[%clk 0:01:44]}  Nb4 {[%clk 0:00:38]} 26. Bxb7 {[%clk 0:01:43]}  Nxc2 {[%clk 0:00:34]} 27. Bxa6 {[%clk 0:01:39]}  e4 {[%clk 0:00:35]} 28. b3 {[%clk 0:01:36]}  Nb4 {[%clk 0:00:34]} 29. Bb7 {[%clk 0:01:35]}  Nxa2 {[%clk 0:00:30]} 30. Bxe4 {[%clk 0:01:35]}  Bc3 {[%clk 0:00:27]} 31. Ke2 {[%clk 0:01:34]}  Nb4 {[%clk 0:00:26]} 32. Bc5 {[%clk 0:01:32]}  f5 {[%clk 0:00:24]} 33. Bb7 {[%clk 0:01:29]}  Kf7 {[%clk 0:00:23]} 34. g3 {[%clk 0:01:25]}  Ke6 {[%clk 0:00:20]} 35. Ke3 {[%clk 0:01:20]}  g5 {[%clk 0:00:19]} 36. Bc8+ {[%clk 0:01:18]}  Kf6 {[%clk 0:00:18]} 37. Bxb4 {[%clk 0:01:13]}  Bxb4 {[%clk 0:00:18]} 38. Kd4 {[%clk 0:01:13]}  f4 {[%clk 0:00:17]} 39. Kc4 {[%clk 0:01:13]}  Be1 {[%clk 0:00:16]} 40. gxf4 {[%clk 0:01:05]}  gxf4 {[%clk 0:00:16]} 41. f3 {[%clk 0:01:05]}  h5 {[%clk 0:00:08]} 42. b4 {[%clk 0:01:01]}  Ke5 {[%clk 0:00:07]} 43. Kc5 {[%clk 0:00:58]}  Bf2+ {[%clk 0:00:06]} 44. Kc6 {[%clk 0:00:58]}  Bg1 {[%clk 0:00:04]} 45. h3 {[%clk 0:00:57]}  Kd4 {[%clk 0:00:03]} 46. b5 {[%clk 0:00:57]}  Ke3 {[%clk 0:00:03]} 47. b6 {[%clk 0:00:52]}  Kxf3 {[%clk 0:00:03]} 48. b7 {[%clk 0:00:53]}  Ba7 {[%clk 0:00:02]} 49. Kc7 {[%clk 0:00:49]}  Kg3 {[%clk 0:00:03]} 50. b8=Q {[%clk 0:00:43]}  Bxb8+ {[%clk 0:00:03]} 51. Kxb8 {[%clk 0:00:44]}  f3 {[%clk 0:00:03]} 52. Kc7 {[%clk 0:00:43]}  f2 {[%clk 0:00:03]} 53. Ba6 {[%clk 0:00:43]}  Kxh3 {[%clk 0:00:04]} 54. Kd6 {[%clk 0:00:43]}  Kh2 {[%clk 0:00:05]} 55. Ke5 {[%clk 0:00:42]}  Kg1 {[%clk 0:00:06]} 56. Kf4 {[%clk 0:00:41]}  Kg2 {[%clk 0:00:05]} 57. Kg5 {[%clk 0:00:40]}  h4 {[%clk 0:00:05]} 58. Kxh4 {[%clk 0:00:40]}  f1=Q {[%clk 0:00:06]} 59. Bxf1+ {[%clk 0:00:40]} 1/2-1/2


[Site "https://www.chess.com"]

[Event "Titled Tuesday Blitz July 11 Late 2023"]
[White "Miguelitro69"]
[Black "Semenova, Alina"]
[BlackFideId "24113875"]
[WhiteElo "2276"]
[BlackElo "2068"]
[Result "1-0"]
[Round "9"]
[TimeControl "180+2"]
[Date "2023.07.11"]
[WhiteClock "0:01:04"]
[BlackClock "0:00:00"]
[Board "114"]

1. e4 {[%clk 0:03:00]}  e5 {[%clk 0:02:59]} 2. Nf3 {[%clk 0:02:55]}  Nf6 {[%clk 0:02:58]} 3. d4 {[%clk 0:02:54]}  Nxe4 {[%clk 0:02:58]} 4. Bd3 {[%clk 0:02:54]}  d5 {[%clk 0:02:59]} 5. dxe5 {[%clk 0:02:55]}  Bc5 {[%clk 0:02:51]} 6. O-O {[%clk 0:02:54]}  O-O {[%clk 0:02:49]} 7. Nbd2 {[%clk 0:02:53]}  Nxd2 {[%clk 0:02:49]} 8. Bxd2 {[%clk 0:02:53]}  Bg4 {[%clk 0:02:48]} 9. h3 {[%clk 0:02:52]}  Bh5 {[%clk 0:02:48]} 10. Bf4 {[%clk 0:02:51]}  Nd7 {[%clk 0:02:43]} 11. Be2 {[%clk 0:02:45]}  c6 {[%clk 0:02:42]} 12. c4 {[%clk 0:02:33]}  dxc4 {[%clk 0:02:33]} 13. Bxc4 {[%clk 0:02:34]}  Nb6 {[%clk 0:02:27]} 14. Bb3 {[%clk 0:02:32]}  Re8 {[%clk 0:02:11]} 15. Qe2 {[%clk 0:02:26]}  Qe7 {[%clk 0:01:49]} 16. g4 {[%clk 0:02:25]}  Bg6 {[%clk 0:01:48]} 17. Rad1 {[%clk 0:02:23]}  h6 {[%clk 0:01:44]} 18. h4 {[%clk 0:02:14]}  Rad8 {[%clk 0:01:40]} 19. h5 {[%clk 0:02:13]}  Bh7 {[%clk 0:01:36]} 20. Bg3 {[%clk 0:02:10]}  Nd7 {[%clk 0:00:41]} 21. Qc4 {[%clk 0:01:54]}  b5 {[%clk 0:00:36]} 22. Qc3 {[%clk 0:01:54]}  Be4 {[%clk 0:00:24]} 23. Nh4 {[%clk 0:01:51]}  Bb4 {[%clk 0:00:14]} 24. Qe3 {[%clk 0:01:44]}  Bh7 {[%clk 0:00:13]} 25. Ng6 {[%clk 0:01:41]}  Bxg6 {[%clk 0:00:02]} 26. hxg6 {[%clk 0:01:42]}  Rf8 {[%clk 0:00:01]} 27. gxf7+ {[%clk 0:01:39]}  Rxf7 {[%clk 0:00:02]} 28. e6 {[%clk 0:01:36]}  Rf6 {[%clk 0:00:01]} 29. exd7+ {[%clk 0:01:36]}  Kf8 {[%clk 0:00:01]} 30. Be5 {[%clk 0:01:10]}  Re6 {[%clk 0:00:00]} 31. Qf4+ {[%clk 0:01:04]} 1-0


[Site "https://www.chess.com"]

[Event "Titled Tuesday Blitz July 11 Late 2023"]
[White "Gamboa, Juan Pablo"]
[Black "Sainz Aguirre, Ignacio"]
[WhiteFideId "105180"]
[BlackFideId "5101727"]
[WhiteElo "1926"]
[BlackElo "1994"]
[Result "0-1"]
[Round "9"]
[TimeControl "180+2"]
[Date "2023.07.11"]
[WhiteClock "0:00:00"]
[BlackClock "0:00:07"]
[Board "118"]

1. c4 {[%clk 0:03:00]}  e6 {[%clk 0:02:59]} 2. e4 {[%clk 0:03:00]}  d5 {[%clk 0:02:47]} 3. exd5 {[%clk 0:03:00]}  exd5 {[%clk 0:02:48]} 4. cxd5 {[%clk 0:03:01]}  Nf6 {[%clk 0:02:47]} 5. Bb5+ {[%clk 0:03:01]}  Bd7 {[%clk 0:02:44]} 6. Bc4 {[%clk 0:03:01]}  Bc5 {[%clk 0:02:40]} 7. Qe2+ {[%clk 0:03:00]}  Be7 {[%clk 0:02:37]} 8. Nf3 {[%clk 0:02:54]}  O-O {[%clk 0:02:35]} 9. Ne5 {[%clk 0:02:48]}  Bf5 {[%clk 0:02:32]} 10. Nc3 {[%clk 0:02:47]}  Bd6 {[%clk 0:02:26]} 11. d4 {[%clk 0:02:46]}  Re8 {[%clk 0:02:21]} 12. O-O {[%clk 0:02:38]}  Nbd7 {[%clk 0:02:20]} 13. Bf4 {[%clk 0:02:08]}  Nb6 {[%clk 0:02:15]} 14. Bb3 {[%clk 0:01:59]}  a5 {[%clk 0:01:53]} 15. a3 {[%clk 0:01:57]}  a4 {[%clk 0:01:52]} 16. Ba2 {[%clk 0:01:57]}  Ng4 {[%clk 0:01:41]} 17. Qf3 {[%clk 0:01:43]}  Nxe5 {[%clk 0:01:38]} 18. Bxe5 {[%clk 0:01:25]}  Bxe5 {[%clk 0:01:38]} 19. Qxf5 {[%clk 0:01:25]}  Bxd4 {[%clk 0:01:34]} 20. d6 {[%clk 0:01:26]}  Bf6 {[%clk 0:01:28]} 21. dxc7 {[%clk 0:01:23]}  Qxc7 {[%clk 0:01:26]} 22. Rac1 {[%clk 0:01:18]}  Rac8 {[%clk 0:01:16]} 23. Ne4 {[%clk 0:01:08]}  Qxc1 {[%clk 0:01:14]} 24. Nxf6+ {[%clk 0:01:08]}  gxf6 {[%clk 0:01:14]} 25. Qb5 {[%clk 0:00:48]}  Qc6 {[%clk 0:00:58]} 26. Qh5 {[%clk 0:00:48]}  Re5 {[%clk 0:00:47]} 27. Qxf7+ {[%clk 0:00:46]}  Kh8 {[%clk 0:00:45]} 28. Bb1 {[%clk 0:00:32]}  f5 {[%clk 0:00:19]} 29. Bxf5 {[%clk 0:00:28]}  Qh6 {[%clk 0:00:18]} 30. Bxc8 {[%clk 0:00:25]}  Nxc8 {[%clk 0:00:18]} 31. Rd1 {[%clk 0:00:19]}  Nd6 {[%clk 0:00:17]} 32. Qc7 {[%clk 0:00:14]}  Re6 {[%clk 0:00:15]} 33. h3 {[%clk 0:00:09]}  Qf6 {[%clk 0:00:13]} 34. Qb8+ {[%clk 0:00:09]}  Kg7 {[%clk 0:00:13]} 35. Qc7+ {[%clk 0:00:04]}  Kg6 {[%clk 0:00:12]} 36. Qc2+ {[%clk 0:00:04]}  Qf5 {[%clk 0:00:11]} 37. Qxa4 {[%clk 0:00:05]}  Re2 {[%clk 0:00:08]} 38. Rf1 {[%clk 0:00:00]}  Ne4 {[%clk 0:00:07]} 0-1


[Site "https://www.chess.com"]

[Event "Titled Tuesday Blitz July 11 Late 2023"]
[White "Awoki, Daniel Teidi"]
[Black "Hartikainen, Jarmo"]
[WhiteFideId "2100827"]
[BlackFideId "503134"]
[WhiteElo "2315"]
[BlackElo "2095"]
[Result "0-1"]
[Round "9"]
[TimeControl "180+2"]
[Date "2023.07.11"]
[WhiteClock "0:00:04"]
[BlackClock "0:00:08"]
[Board "119"]

1. e4 {[%clk 0:02:49]}  c5 {[%clk 0:02:59]} 2. Nf3 {[%clk 0:02:43]}  Nc6 {[%clk 0:02:58]} 3. d4 {[%clk 0:02:42]}  cxd4 {[%clk 0:02:58]} 4. Nxd4 {[%clk 0:02:43]}  Nf6 {[%clk 0:02:58]} 5. Nc3 {[%clk 0:02:43]}  d6 {[%clk 0:02:59]} 6. Bg5 {[%clk 0:02:43]}  Bd7 {[%clk 0:02:56]} 7. Qd2 {[%clk 0:02:41]}  a6 {[%clk 0:02:56]} 8. O-O-O {[%clk 0:02:40]}  e6 {[%clk 0:02:55]} 9. f3 {[%clk 0:02:39]}  Be7 {[%clk 0:02:54]} 10. h4 {[%clk 0:02:35]}  Qc7 {[%clk 0:02:53]} 11. Kb1 {[%clk 0:02:34]}  b5 {[%clk 0:02:46]} 12. g4 {[%clk 0:02:31]}  Ne5 {[%clk 0:02:37]} 13. Nce2 {[%clk 0:02:23]}  Nc4 {[%clk 0:02:00]} 14. Qc1 {[%clk 0:02:22]}  O-O-O {[%clk 0:01:46]} 15. Nf4 {[%clk 0:02:14]}  h6 {[%clk 0:01:37]} 16. Bxf6 {[%clk 0:02:06]}  Bxf6 {[%clk 0:01:37]} 17. Bxc4 {[%clk 0:01:59]}  Qxc4 {[%clk 0:01:30]} 18. Nb3 {[%clk 0:01:54]}  Qc7 {[%clk 0:01:13]} 19. Qd2 {[%clk 0:01:46]}  Bc6 {[%clk 0:01:04]} 20. Nd3 {[%clk 0:01:34]}  d5 {[%clk 0:00:46]} 21. exd5 {[%clk 0:01:29]}  Rxd5 {[%clk 0:00:43]} 22. Qf4 {[%clk 0:01:17]}  Qxf4 {[%clk 0:00:41]} 23. Nxf4 {[%clk 0:01:16]}  Rxd1+ {[%clk 0:00:42]} 24. Rxd1 {[%clk 0:01:16]}  Rd8 {[%clk 0:00:38]} 25. Rxd8+ {[%clk 0:00:50]}  Kxd8 {[%clk 0:00:38]} 26. Nd2 {[%clk 0:00:47]}  Bxh4 {[%clk 0:00:37]} 27. Nd3 {[%clk 0:00:43]}  Bf6 {[%clk 0:00:23]} 28. Kc1 {[%clk 0:00:39]}  g6 {[%clk 0:00:20]} 29. c3 {[%clk 0:00:33]}  e5 {[%clk 0:00:19]} 30. Nc5 {[%clk 0:00:19]}  a5 {[%clk 0:00:16]} 31. Nce4 {[%clk 0:00:17]}  Be7 {[%clk 0:00:15]} 32. Kd1 {[%clk 0:00:16]}  f5 {[%clk 0:00:15]} 33. Nf2 {[%clk 0:00:12]}  Bg5 {[%clk 0:00:13]} 34. gxf5 {[%clk 0:00:12]}  gxf5 {[%clk 0:00:13]} 35. Nd3 {[%clk 0:00:11]}  Bf6 {[%clk 0:00:11]} 36. Ke2 {[%clk 0:00:07]}  Ke7 {[%clk 0:00:11]} 37. Kf2 {[%clk 0:00:05]}  Kd6 {[%clk 0:00:11]} 38. Kg3 {[%clk 0:00:05]}  Bg5 {[%clk 0:00:11]} 39. Nb3 {[%clk 0:00:03]}  a4 {[%clk 0:00:11]} 40. Nbc5 {[%clk 0:00:02]}  e4 {[%clk 0:00:09]} 41. fxe4 {[%clk 0:00:03]}  fxe4 {[%clk 0:00:09]} 42. Nxe4+ {[%clk 0:00:02]}  Bxe4 {[%clk 0:00:09]} 43. Nf2 {[%clk 0:00:03]}  Bb1 {[%clk 0:00:08]} 44. b3 {[%clk 0:00:03]}  Bf5 {[%clk 0:00:07]} 45. bxa4 {[%clk 0:00:04]}  bxa4 {[%clk 0:00:07]} 46. a3 {[%clk 0:00:03]}  Kc5 {[%clk 0:00:07]} 47. Kf3 {[%clk 0:00:03]}  Kc4 {[%clk 0:00:07]} 48. Ke2 {[%clk 0:00:03]}  Kxc3 {[%clk 0:00:08]} 49. Kd1 {[%clk 0:00:03]}  Kb3 {[%clk 0:00:08]} 50. Ke1 {[%clk 0:00:02]}  Kxa3 {[%clk 0:00:08]} 51. Ke2 {[%clk 0:00:03]}  Kb3 {[%clk 0:00:08]} 52. Kf3 {[%clk 0:00:04]}  a3 {[%clk 0:00:08]} 53. Ke2 {[%clk 0:00:03]}  a2 {[%clk 0:00:08]} 54. Kf3 {[%clk 0:00:04]}  a1=Q {[%clk 0:00:09]} 55. Nd3 {[%clk 0:00:04]}  Qc3 {[%clk 0:00:08]} 56. Kg2 {[%clk 0:00:03]}  Qxd3 {[%clk 0:00:09]} 57. Kh1 {[%clk 0:00:04]}  Be4+ {[%clk 0:00:09]} 58. Kh2 {[%clk 0:00:00]}  Bf4+ {[%clk 0:00:08]} 59. Kg1 {[%clk 0:00:01]}  Qd1+ {[%clk 0:00:08]} 60. Kf2 {[%clk 0:00:01]}  Qd2+ {[%clk 0:00:08]} 61. Kf1 {[%clk 0:00:02]}  Qg2+ {[%clk 0:00:08]} 62. Ke1 {[%clk 0:00:02]}  Bg3+ {[%clk 0:00:08]} 63. Kd1 {[%clk 0:00:02]}  Bf3+ {[%clk 0:00:09]} 64. Kc1 {[%clk 0:00:03]}  Bf4+ {[%clk 0:00:09]} 65. Kb1 {[%clk 0:00:04]}  Qg1# {[%clk 0:00:08]} 0-1


[Site "https://www.chess.com"]

[Event "Titled Tuesday Blitz July 11 Late 2023"]
[White "Gyulamiryan-koryun"]
[Black "Lutz, Igor Oscar"]
[BlackFideId "2110806"]
[WhiteElo "1862"]
[BlackElo "1970"]
[Result "1-0"]
[Round "9"]
[TimeControl "180+2"]
[Date "2023.07.11"]
[WhiteClock "0:00:46"]
[BlackClock "0:00:00"]
[Board "121"]

1. e4 {[%clk 0:02:57]}  c5 {[%clk 0:02:57]} 2. Nf3 {[%clk 0:02:57]}  Nc6 {[%clk 0:02:55]} 3. d4 {[%clk 0:02:56]}  cxd4 {[%clk 0:02:56]} 4. Nxd4 {[%clk 0:02:56]}  Nf6 {[%clk 0:02:56]} 5. Nc3 {[%clk 0:02:56]}  d6 {[%clk 0:02:56]} 6. f3 {[%clk 0:02:54]}  e6 {[%clk 0:02:42]} 7. Bg5 {[%clk 0:02:52]}  Be7 {[%clk 0:02:36]} 8. Ndb5 {[%clk 0:02:48]}  a6 {[%clk 0:02:18]} 9. Bxf6 {[%clk 0:02:46]}  gxf6 {[%clk 0:02:19]} 10. Nd4 {[%clk 0:02:44]}  Qb6 {[%clk 0:02:10]} 11. Nb3 {[%clk 0:02:35]}  Nb4 {[%clk 0:01:41]} 12. Be2 {[%clk 0:02:28]}  Bd7 {[%clk 0:01:29]} 13. Qd2 {[%clk 0:02:26]}  Rc8 {[%clk 0:01:21]} 14. a3 {[%clk 0:02:13]}  Nc6 {[%clk 0:01:17]} 15. O-O-O {[%clk 0:02:00]}  Ne5 {[%clk 0:01:04]} 16. Kb1 {[%clk 0:01:54]}  a5 {[%clk 0:00:46]} 17. Qd4 {[%clk 0:01:54]}  Qxd4 {[%clk 0:00:41]} 18. Nxd4 {[%clk 0:01:53]}  Rg8 {[%clk 0:00:33]} 19. g3 {[%clk 0:01:52]}  Nc4 {[%clk 0:00:24]} 20. Ndb5 {[%clk 0:01:41]}  Bxb5 {[%clk 0:00:11]} 21. Nxb5 {[%clk 0:01:39]}  Kd7 {[%clk 0:00:10]} 22. b3 {[%clk 0:01:33]}  Ne3 {[%clk 0:00:05]} 23. Rd3 {[%clk 0:01:32]}  Nxc2 {[%clk 0:00:02]} 24. Rc3 {[%clk 0:01:21]}  Rxc3 {[%clk 0:00:01]} 25. Nxc3 {[%clk 0:01:20]}  Nxa3+ {[%clk 0:00:02]} 26. Kb2 {[%clk 0:01:15]}  Rc8 {[%clk 0:00:02]} 27. Rc1 {[%clk 0:01:04]}  d5 {[%clk 0:00:03]} 28. exd5 {[%clk 0:01:01]}  exd5 {[%clk 0:00:04]} 29. Nxd5 {[%clk 0:00:59]}  Rxc1 {[%clk 0:00:03]} 30. Kxc1 {[%clk 0:00:58]}  Kd6 {[%clk 0:00:03]} 31. Nxe7 {[%clk 0:00:46]}  Kxe7 {[%clk 0:00:00]} 32. Kb2 {[%clk 0:00:46]} 1-0


[Site "https://www.chess.com"]

[Event "Titled Tuesday Blitz July 11 Late 2023"]
[White "Nakamura, Hikaru"]
[Black "Caruana, Fabiano"]
[WhiteFideId "2016192"]
[BlackFideId "2020009"]
[WhiteElo "3242"]
[BlackElo "3114"]
[Result "1/2-1/2"]
[Round "10"]
[TimeControl "180+2"]
[Date "2023.07.11"]
[WhiteClock "0:00:05"]
[BlackClock "0:00:06"]
[Board "2"]

1. a3 {[%clk 0:03:00]}  a6 {[%clk 0:02:58]} 2. d4 {[%clk 0:02:58]}  Nf6 {[%clk 0:02:58]} 3. c4 {[%clk 0:02:47]}  c6 {[%clk 0:02:58]} 4. Bf4 {[%clk 0:02:40]}  d6 {[%clk 0:02:51]} 5. Nc3 {[%clk 0:02:39]}  g6 {[%clk 0:02:51]} 6. e3 {[%clk 0:02:37]}  Bg7 {[%clk 0:02:52]} 7. h3 {[%clk 0:02:38]}  O-O {[%clk 0:02:52]} 8. Nf3 {[%clk 0:02:38]}  b5 {[%clk 0:02:50]} 9. Rc1 {[%clk 0:02:38]}  Nbd7 {[%clk 0:02:47]} 10. Be2 {[%clk 0:02:35]}  Nb6 {[%clk 0:02:45]} 11. cxb5 {[%clk 0:02:30]}  axb5 {[%clk 0:02:43]} 12. O-O {[%clk 0:02:31]}  Bd7 {[%clk 0:02:29]} 13. e4 {[%clk 0:02:28]}  Be6 {[%clk 0:02:00]} 14. Nd2 {[%clk 0:02:23]}  Nfd7 {[%clk 0:01:54]} 15. Be3 {[%clk 0:02:23]}  d5 {[%clk 0:01:50]} 16. e5 {[%clk 0:01:52]}  Nc4 {[%clk 0:01:49]} 17. Nxc4 {[%clk 0:01:50]}  bxc4 {[%clk 0:01:50]} 18. b3 {[%clk 0:01:33]}  Rxa3 {[%clk 0:01:43]} 19. bxc4 {[%clk 0:01:33]}  dxc4 {[%clk 0:01:44]} 20. Nb1 {[%clk 0:01:34]}  Rxe3 {[%clk 0:01:27]} 21. fxe3 {[%clk 0:01:33]}  Bh6 {[%clk 0:01:28]} 22. Rc3 {[%clk 0:01:14]}  Nb6 {[%clk 0:01:13]} 23. e4 {[%clk 0:00:55]}  Qd7 {[%clk 0:01:13]} 24. Na3 {[%clk 0:00:55]}  Rd8 {[%clk 0:01:09]} 25. Nxc4 {[%clk 0:00:43]}  Nxc4 {[%clk 0:00:35]} 26. Bxc4 {[%clk 0:00:44]}  Bxc4 {[%clk 0:00:35]} 27. Rxc4 {[%clk 0:00:44]}  Be3+ {[%clk 0:00:28]} 28. Kh1 {[%clk 0:00:45]}  Bxd4 {[%clk 0:00:24]} 29. e6 {[%clk 0:00:45]}  fxe6 {[%clk 0:00:25]} 30. Qf3 {[%clk 0:00:46]}  c5 {[%clk 0:00:19]} 31. Qf7+ {[%clk 0:00:40]}  Kh8 {[%clk 0:00:19]} 32. Rcc1 {[%clk 0:00:38]}  Qe8 {[%clk 0:00:07]} 33. Qxe6 {[%clk 0:00:37]}  Rd6 {[%clk 0:00:08]} 34. Qg4 {[%clk 0:00:36]}  Kg7 {[%clk 0:00:08]} 35. Qg5 {[%clk 0:00:29]}  h6 {[%clk 0:00:07]} 36. Qh4 {[%clk 0:00:30]}  Qd7 {[%clk 0:00:06]} 37. Qg3 {[%clk 0:00:28]}  Qe6 {[%clk 0:00:06]} 38. Qf3 {[%clk 0:00:27]}  Rd8 {[%clk 0:00:06]} 39. Qe2 {[%clk 0:00:25]}  h5 {[%clk 0:00:06]} 40. Rf3 {[%clk 0:00:25]}  Rf8 {[%clk 0:00:05]} 41. Rxf8 {[%clk 0:00:23]}  Kxf8 {[%clk 0:00:06]} 42. Qf3+ {[%clk 0:00:22]}  Kg7 {[%clk 0:00:06]} 43. Rf1 {[%clk 0:00:23]}  Bf6 {[%clk 0:00:06]} 44. Qd3 {[%clk 0:00:22]}  c4 {[%clk 0:00:07]} 45. Qe2 {[%clk 0:00:14]}  c3 {[%clk 0:00:07]} 46. Qd3 {[%clk 0:00:13]}  Be5 {[%clk 0:00:06]} 47. Qf3 {[%clk 0:00:10]}  Bf6 {[%clk 0:00:06]} 48. Qd3 {[%clk 0:00:10]}  Be5 {[%clk 0:00:06]} 49. Qf3 {[%clk 0:00:05]}  Bf6 {[%clk 0:00:06]} 50. Qd3 {[%clk 0:00:05]} 1/2-1/2


[Site "https://www.chess.com"]

[Event "Titled Tuesday Blitz July 11 Late 2023"]
[White "Fedoseev, Vladimir"]
[Black "Durarbayli, Vasif"]
[WhiteFideId "24130737"]
[BlackFideId "13402935"]
[WhiteElo "3075"]
[BlackElo "2920"]
[Result "0-1"]
[Round "10"]
[TimeControl "180+2"]
[Date "2023.07.11"]
[WhiteClock "0:00:00"]
[BlackClock "0:00:02"]
[Board "5"]

1. c4 {[%clk 0:03:00]}  c5 {[%clk 0:02:57]} 2. Nf3 {[%clk 0:03:00]}  Nf6 {[%clk 0:02:55]} 3. Nc3 {[%clk 0:03:00]}  e6 {[%clk 0:02:56]} 4. d4 {[%clk 0:02:59]}  cxd4 {[%clk 0:02:57]} 5. Nxd4 {[%clk 0:02:59]}  b6 {[%clk 0:02:57]} 6. e4 {[%clk 0:02:58]}  d6 {[%clk 0:02:57]} 7. Bd3 {[%clk 0:02:56]}  Bb7 {[%clk 0:02:58]} 8. O-O {[%clk 0:02:56]}  Nbd7 {[%clk 0:02:58]} 9. Re1 {[%clk 0:02:55]}  a6 {[%clk 0:02:57]} 10. b3 {[%clk 0:02:55]}  Qc7 {[%clk 0:02:58]} 11. Bb2 {[%clk 0:02:55]}  g6 {[%clk 0:02:55]} 12. Rc1 {[%clk 0:02:44]}  Bg7 {[%clk 0:02:52]} 13. f4 {[%clk 0:02:17]}  Nh5 {[%clk 0:02:22]} 14. Nce2 {[%clk 0:02:00]}  O-O {[%clk 0:02:03]} 15. Bb1 {[%clk 0:01:41]}  Nc5 {[%clk 0:01:48]} 16. g4 {[%clk 0:01:31]}  Nf6 {[%clk 0:01:25]} 17. Ng3 {[%clk 0:01:23]}  e5 {[%clk 0:01:26]} 18. g5 {[%clk 0:01:21]}  Nfxe4 {[%clk 0:00:55]} 19. Bxe4 {[%clk 0:01:01]}  Nxe4 {[%clk 0:00:33]} 20. Nxe4 {[%clk 0:01:01]}  Bxe4 {[%clk 0:00:15]} 21. Rxe4 {[%clk 0:00:51]}  exd4 {[%clk 0:00:15]} 22. Qd3 {[%clk 0:00:39]}  Rae8 {[%clk 0:00:09]} 23. Rce1 {[%clk 0:00:39]}  Rxe4 {[%clk 0:00:09]} 24. Rxe4 {[%clk 0:00:39]}  d5 {[%clk 0:00:08]} 25. cxd5 {[%clk 0:00:37]}  Qd7 {[%clk 0:00:07]} 26. Bxd4 {[%clk 0:00:27]}  Qxd5 {[%clk 0:00:06]} 27. Qe3 {[%clk 0:00:27]}  Rd8 {[%clk 0:00:03]} 28. Re8+ {[%clk 0:00:20]}  Rxe8 {[%clk 0:00:03]} 29. Qxe8+ {[%clk 0:00:20]}  Bf8 {[%clk 0:00:04]} 30. Qe5 {[%clk 0:00:20]}  Qxe5 {[%clk 0:00:04]} 31. fxe5 {[%clk 0:00:20]}  b5 {[%clk 0:00:04]} 32. Kg2 {[%clk 0:00:21]}  Be7 {[%clk 0:00:04]} 33. h4 {[%clk 0:00:21]}  Kf8 {[%clk 0:00:03]} 34. Kf3 {[%clk 0:00:21]}  Bb4 {[%clk 0:00:04]} 35. Ke4 {[%clk 0:00:21]}  Be1 {[%clk 0:00:03]} 36. Kd5 {[%clk 0:00:18]}  Bxh4 {[%clk 0:00:03]} 37. Be3 {[%clk 0:00:15]}  Ke7 {[%clk 0:00:03]} 38. a4 {[%clk 0:00:12]}  bxa4 {[%clk 0:00:02]} 39. bxa4 {[%clk 0:00:13]}  Bg3 {[%clk 0:00:03]} 40. Bd2 {[%clk 0:00:10]}  Kd7 {[%clk 0:00:02]} 41. a5 {[%clk 0:00:11]}  Bh2 {[%clk 0:00:02]} 42. Be3 {[%clk 0:00:09]}  Bg3 {[%clk 0:00:02]} 43. Bd2 {[%clk 0:00:09]}  Bf2 {[%clk 0:00:02]} 44. Bc3 {[%clk 0:00:00]}  Be3 {[%clk 0:00:02]} 0-1


[Site "https://www.chess.com"]

[Event "Titled Tuesday Blitz July 11 Late 2023"]
[White "Warmerdam, Max"]
[Black "Bluebaum, Matthias"]
[WhiteFideId "1048104"]
[BlackFideId "24651516"]
[WhiteElo "2843"]
[BlackElo "3045"]
[Result "0-1"]
[Round "10"]
[TimeControl "180+2"]
[Date "2023.07.11"]
[WhiteClock "0:00:08"]
[BlackClock "0:00:23"]
[Board "7"]

1. d4 {[%clk 0:03:00]}  d5 {[%clk 0:03:00]} 2. c4 {[%clk 0:03:01]}  e6 {[%clk 0:03:00]} 3. Nc3 {[%clk 0:03:00]}  Bb4 {[%clk 0:03:01]} 4. cxd5 {[%clk 0:02:52]}  exd5 {[%clk 0:03:02]} 5. Bf4 {[%clk 0:02:52]}  c5 {[%clk 0:03:02]} 6. e3 {[%clk 0:02:51]}  c4 {[%clk 0:03:03]} 7. Ne2 {[%clk 0:02:45]}  Nc6 {[%clk 0:03:03]} 8. h4 {[%clk 0:02:42]}  h6 {[%clk 0:03:00]} 9. g3 {[%clk 0:02:40]}  Nge7 {[%clk 0:02:58]} 10. Bg2 {[%clk 0:02:40]}  Be6 {[%clk 0:02:58]} 11. O-O {[%clk 0:02:34]}  O-O {[%clk 0:02:56]} 12. a3 {[%clk 0:02:33]}  Ba5 {[%clk 0:02:54]} 13. b3 {[%clk 0:02:26]}  Bg4 {[%clk 0:02:25]} 14. Qb1 {[%clk 0:02:14]}  Bf5 {[%clk 0:02:17]} 15. Qb2 {[%clk 0:02:14]}  Bd3 {[%clk 0:02:17]} 16. Rfc1 {[%clk 0:01:58]}  cxb3 {[%clk 0:01:47]} 17. Qxb3 {[%clk 0:01:55]}  Bc4 {[%clk 0:01:48]} 18. Qxb7 {[%clk 0:01:45]}  Bb6 {[%clk 0:01:48]} 19. Rab1 {[%clk 0:01:08]}  Na5 {[%clk 0:01:42]} 20. Rxb6 {[%clk 0:01:09]}  Nxb7 {[%clk 0:01:25]} 21. Rxb7 {[%clk 0:01:10]}  Rc8 {[%clk 0:01:26]} 22. Rcb1 {[%clk 0:01:08]}  Ng6 {[%clk 0:01:24]} 23. Rxa7 {[%clk 0:01:00]}  Bd3 {[%clk 0:01:21]} 24. Rbb7 {[%clk 0:00:58]}  Nxf4 {[%clk 0:01:21]} 25. gxf4 {[%clk 0:00:49]}  Bxe2 {[%clk 0:01:14]} 26. Nxe2 {[%clk 0:00:50]}  Qxh4 {[%clk 0:01:14]} 27. Bxd5 {[%clk 0:00:50]}  Qg4+ {[%clk 0:01:11]} 28. Ng3 {[%clk 0:00:49]}  Kh8 {[%clk 0:00:57]} 29. Bxf7 {[%clk 0:00:46]}  Rb8 {[%clk 0:00:56]} 30. Bh5 {[%clk 0:00:40]}  Rxb7 {[%clk 0:00:52]} 31. Bxg4 {[%clk 0:00:19]}  Rxa7 {[%clk 0:00:52]} 32. Kg2 {[%clk 0:00:19]}  Rxa3 {[%clk 0:00:53]} 33. Kf3 {[%clk 0:00:19]}  g6 {[%clk 0:00:53]} 34. Be6 {[%clk 0:00:19]}  Kg7 {[%clk 0:00:52]} 35. Ke4 {[%clk 0:00:16]}  h5 {[%clk 0:00:49]} 36. d5 {[%clk 0:00:15]}  h4 {[%clk 0:00:48]} 37. Nf1 {[%clk 0:00:13]}  Ra2 {[%clk 0:00:46]} 38. Kf3 {[%clk 0:00:13]}  g5 {[%clk 0:00:38]} 39. f5 {[%clk 0:00:12]}  g4+ {[%clk 0:00:33]} 40. Kg2 {[%clk 0:00:09]}  g3 {[%clk 0:00:32]} 41. Nxg3 {[%clk 0:00:10]}  hxg3 {[%clk 0:00:33]} 42. Kxg3 {[%clk 0:00:10]}  Kf6 {[%clk 0:00:33]} 43. f4 {[%clk 0:00:10]}  Ra3 {[%clk 0:00:30]} 44. Kf2 {[%clk 0:00:11]}  Rh8 {[%clk 0:00:25]} 45. d6 {[%clk 0:00:11]}  Rh2+ {[%clk 0:00:24]} 46. Kg3 {[%clk 0:00:11]}  Rd2 {[%clk 0:00:23]} 47. Kf3 {[%clk 0:00:08]}  Rxd6 {[%clk 0:00:23]} 0-1


[Site "https://www.chess.com"]